bitfinex-derivatives/quotes_ETHF0:USTF0_20250107
["timestamp","ask_amount","ask_price","bid_price","bid_amount"]
[1736248677358,3.62000844,3658.1,3658.0,0.27335]
[1736248678648,4.03019802,3658.1,3658.0,6.72946052]
[1736248680057,0.4167,3658.1,3658.0,0.27335]
[1736248682862,2.56616908,3658.1,3658.0,0.27335]
[1736248684853,0.4167,3658.1,3658.0,6.72774885]
[1736248686456,0.4167,3658.1,3658.0,0.27335]
[1736248687463,2.56570904,3658.1,3658.0,0.27335]
[1736248694066,2.14900904,3658.1,3658.0,0.27335]
[1736248694265,2.14900904,3658.1,3658.0,0.70905]
[1736248694667,2.14900904,3658.1,3658.0,0.98265]
[1736248695569,0.4469,3658.4,3658.3,0.27333]
[1736248695570,2.14900904,3658.4,3658.3,0.27333]
[1736248695762,2.14900904,3658.4,3658.3,4.46792572]
[1736248696870,0.4469,3658.5,3658.4,0.27333]
[1736248697171,0.4469,3658.5,3658.4,1.26012572]
[1736248700572,0.4469,3658.5,3658.4,1.69592572]
[1736248701371,0.4469,3658.5,3658.4,0.27333]
[1736248702475,0.4469,3658.5,3658.4,6.71721675]
[1736248703771,0.4469,3658.5,3658.4,1.26012572]
[1736248704476,8.43079277,3658.5,3658.3,5.75098675]
[1736248704673,0.72083,3658.4,3658.3,10.32002564]
[1736248704976,0.72083,3658.4,3658.3,4.56903889]
[1736248705877,1.13102081,3658.4,3658.3,0.27333]
[1736248709381,0.85769081,3658.4,3657.8,7.50350889]
[1736248709572,1.26015572,3657.9,3657.8,4.56907889]
[1736248709878,0.27338,3657.6,3657.5,7.54821482]
[1736248710093,4.46797572,3657.6,3657.5,7.54821482]
[1736248710283,16.30389399,3657.6,3657.5,7.54821482]
[1736248710788,11.30389399,3657.6,3657.5,7.54821482]
[1736248711086,0.27341,3657.3,3657.2,0.27341]
[1736248711479,7.26043075,3657.3,3657.2,0.27341]
[1736248711984,0.27342,3657.2,3657.1,0.27342]
[1736248712383,10.61214124,3657.3,3657.2,0.27341]
[1736248712580,10.88555124,3657.3,3657.2,0.27341]
[1736248713388,10.20195043,3657.3,3657.2,0.27341]
[1736248714590,2.14179276,3657.3,3657.2,0.27341]
[1736248715882,0.27339,3657.6,3657.0,2.18774469]
[1736248716081,0.27339,3657.6,3657.5,0.27339]
[1736248717287,0.2734,3657.5,3657.4,0.27339]
[1736248717590,0.2734,3657.5,3657.0,2.87131469]
[1736248717591,0.27339,3657.6,3657.5,0.27339]
[1736248720080,0.27341,3657.4,3657.0,2.18774469]
[1736248720390,0.27341,3657.4,3657.3,0.2734]
[1736248720985,0.2734,3657.5,3657.4,0.27339]
[1736248726490,0.27339,3657.6,3657.5,0.27338]
[1736248730585,7.07673941,3657.7,3657.6,0.27338]
[1736248730991,0.27338,3657.7,3657.6,0.27338]
[1736248731296,2.41516276,3657.9,3657.8,0.27337]
[1736248732387,2.41516276,3657.9,3657.8,0.69177]
[1736248732587,0.27337,3657.9,3657.8,0.69177]
[1736248741298,0.27337,3657.9,3657.8,0.4184]
[1736248741493,0.27337,3657.9,3657.8,0.69177]
[1736248742696,0.27337,3657.9,3657.8,0.4184]
[1736248743798,0.27337,3657.8,3657.7,0.70127]
[1736248744692,0.27337,3657.8,3657.5,0.4556]
[1736248744693,0.98690616,3657.8,3657.5,0.4556]
[1736248744903,0.98690616,3657.8,3657.3,0.4602]
[1736248744904,0.2734,3657.4,3657.3,0.4602]
[1736248745104,4.46810616,3657.4,3657.3,0.4602]
[1736248745303,11.25049473,3657.4,3657.3,0.4602]
[1736248746200,14.46542441,3657.4,3657.3,0.4602]
[1736248747514,14.87575108,3657.4,3657.3,0.4602]
[1736248748208,14.87575108,3657.4,3657.3,0.9032]
[1736248748711,11.6608214,3657.4,3657.3,0.9032]
[1736248749300,0.27343,3657.0,3656.9,0.4369]
[1736248749806,0.27343,3657.0,3656.9,0.71034]
[1736248750406,4.30164667,3657.4,3656.9,0.4369]
[1736248750604,0.27343,3657.1,3657.0,0.27342]
[1736248751506,3.4889501,3657.1,3657.0,0.27342]
[1736248753012,3.89927677,3657.1,3657.0,0.27342]
[1736248753312,3.62584677,3657.1,3657.0,0.27342]
[1736248753809,3.2155201,3657.1,3657.0,0.27342]
[1736248754411,2.14452606,3657.2,3657.1,0.27342]
[1736248754605,2.41793606,3657.2,3657.1,0.27342]
[1736248754911,6.96844968,3657.1,3657.0,0.27342]
[1736248755404,10.59430422,3657.1,3657.0,0.27342]
[1736248756511,7.37878412,3657.1,3657.0,0.27342]
[1736248757410,7.10535412,3657.1,3656.2,8.57191143]
[1736248757615,0.27347,3656.5,3656.4,0.27347]
[1736248758303,0.2735,3656.4,3656.3,1.5881]
[1736248758812,0.2735,3656.4,3656.3,1.3146]
[1736248760815,3.90002856,3656.4,3656.3,1.3146]
[1736248762010,3.90002856,3656.4,3656.3,1.58811]
[1736248762213,2.14198665,3656.4,3656.3,1.58811]
[1736248763507,5.62328665,3656.5,3656.3,1.3146]
[1736248763707,5.62328665,3656.5,3656.4,0.2735]
[1736248764014,5.34978665,3656.5,3656.4,0.2735]
[1736248764509,5.62327665,3656.5,3656.4,0.2735]
[1736248766911,3.48129,3656.5,3656.4,0.2735]
[1736248767116,0.27349,3656.5,3656.4,0.2735]
[1736248789232,2.41547665,3656.5,3656.4,0.2735]
[1736248790440,0.27349,3656.5,3656.4,0.2735]
[1736248791340,1.26120005,3656.5,3656.4,0.2735]
[1736248791836,0.27349,3656.5,3656.4,0.2735]
[1736248792041,3.48958475,3656.5,3656.4,0.2735]
[1736248793241,0.68390503,3656.5,3656.4,0.2735]
[1736248794647,0.27349,3656.5,3656.4,0.2735]
[1736248796046,0.68390503,3656.5,3656.4,0.2735]
[1736248797244,0.41041503,3656.5,3656.4,0.2735]
[1736248797548,0.68390503,3656.5,3656.4,1.26121005]
[1736248801543,4.97126517,3656.5,3656.4,1.26121005]
[1736248802444,0.68390503,3656.5,3656.4,1.26121005]
[1736248803942,0.27349,3656.5,3656.4,1.26121005]
[1736248805046,5.38557011,3656.5,3656.4,0.2735]
[1736248805948,10.7416154,3656.5,3656.4,0.2735]
[1736248807848,0.2735,3656.4,3656.3,1.3146]
[1736248808146,0.2735,3656.4,3656.3,2.57582005]
[1736248809243,0.2735,3656.4,3656.3,1.58811]
[1736248809750,5.38558011,3656.4,3656.3,1.58811]
[1736248816756,10.7416254,3656.4,3656.3,1.58811]
[1736248817856,10.7416254,3656.4,3656.3,1.3146]
[1736248818648,10.7416254,3656.4,3656.3,1.58811]
[1736248819358,5.38558011,3656.4,3656.3,1.58811]
[1736248819855,8.59338011,3656.4,3656.3,1.58811]
[1736248822263,13.9494254,3656.4,3656.3,1.58811]
[1736248825562,0.27352,3656.1,3656.0,6.43637902]
[1736248825760,2.31223005,3656.1,3656.0,6.00827902]
[1736248825956,9.22749986,3656.1,3656.0,4.9733538]
[1736248826463,0.27357,3655.5,3655.4,8.99061143]
[1736248827461,1.26128005,3655.5,3655.4,8.99061143]
[1736248828356,1.67169508,3655.5,3655.4,0.4187]
[1736248831159,5.95686185,3655.5,3655.4,0.4187]
[1736248832553,1.67169508,3655.5,3655.4,0.4187]
[1736248834166,4.87949508,3655.5,3655.4,0.4187]
[1736248835064,8.09028927,3655.5,3655.4,0.4187]
[1736248838867,7.67987424,3655.5,3655.4,0.4187]
[1736248841273,4.46908005,3655.5,3655.4,0.4187]
[1736248843879,6.60767931,3655.5,3655.4,0.4187]
[1736248850874,4.46908005,3655.5,3655.4,0.4187]
[1736248851371,0.27358,3655.4,3655.3,0.4232]
[1736248852878,1.32258,3655.4,3655.3,0.4232]
[1736248853884,0.27358,3655.4,3655.3,0.4232]
[1736248856371,3.48437419,3655.4,3655.3,0.4232]
[1736248859284,3.89494603,3655.4,3655.3,0.4232]
[1736248863086,0.68415184,3655.4,3655.3,0.4232]
[1736248867683,0.68415184,3655.4,3655.3,0.69678]
[1736248867991,0.68415184,3655.4,3655.3,0.4232]
[1736248870093,0.41057184,3655.4,3655.3,0.4232]
[1736248870393,0.68415184,3655.4,3655.3,0.69678]
[1736248871094,5.00536314,3655.4,3655.3,0.69678]
[1736248871790,5.00536314,3655.4,3655.3,0.4232]
[1736248872486,0.27359,3655.2,3655.1,0.8526]
[1736248872688,1.26130005,3655.2,3655.1,0.8526]
[1736248873689,6.40365503,3655.2,3655.1,0.8526]
[1736248883401,6.40365503,3655.2,3655.1,1.1262]
[1736248883702,4.44925498,3655.2,3655.1,1.1262]
[1736248883914,3.06305498,3655.2,3655.1,1.1262]
[1736248884811,4.2934922,3655.3,3655.2,0.27359]
[1736248885199,2.9070922,3655.3,3655.2,1.26130005]
[1736248885404,8.57466525,3655.5,3655.2,1.26130005]
[1736248885405,5.36686525,3655.5,3655.4,0.27358]
[1736248885608,5.36686525,3655.5,3655.4,1.26129005]
[1736248886209,5.36686525,3655.8,3655.7,0.27355]
[1736248886512,6.6281253,3655.8,3655.7,0.27355]
[1736248887510,1.26126005,3655.8,3655.7,0.27355]
[1736248887815,0.27355,3655.8,3655.7,0.27355]
[1736248888112,1.26126005,3655.8,3655.7,0.27355]
[1736248888614,1.70586005,3655.8,3655.7,0.27355]
[1736248890516,1.43231005,3655.8,3655.7,0.27355]
[1736248891620,1.70586005,3655.8,3655.7,0.27355]
[1736248892207,1.70586005,3655.8,3655.4,0.4414]
[1736248892208,4.64011005,3655.8,3655.3,4.30415511]
[1736248892412,5.4568001,3655.4,3655.3,4.30415511]
[1736248892909,12.30044389,3655.4,3655.3,4.30415511]
[1736248894215,12.30044389,3655.4,3654.9,0.27361]
[1736248894216,12.02686389,3655.4,3654.9,0.27361]
[1736248894416,0.98771005,3655.0,3654.9,0.27361]
[1736248894820,1.44341005,3655.0,3654.9,0.27361]
[1736248895916,4.65121005,3655.0,3654.9,0.27361]
[1736248897816,4.92482005,3655.0,3654.9,0.27361]
[1736248898719,4.65121005,3655.0,3654.6,0.4204]
[1736248899019,0.27364,3654.5,3654.4,4.30415511]
[1736248899221,3.48144,3654.5,3654.4,4.30415511]
[1736248899422,10.29152184,3654.5,3654.4,4.30415511]
[1736248899721,10.01788184,3654.5,3654.3,4.30415511]
[1736248899923,1.70596005,3654.4,3654.3,4.30415511]
[1736248900415,8.47492227,3654.4,3654.3,4.30415511]
[1736248901317,8.47493227,3654.4,3654.2,0.27367]
[1736248901518,8.47493227,3654.4,3654.1,0.27367]
[1736248901721,0.98771005,3654.2,3654.1,0.27367]
[1736248902224,1.43681005,3654.2,3653.9,1.2891]
[1736248902515,0.27368,3654.1,3653.9,0.69348]
[1736248902721,1.43681005,3654.2,3653.7,0.98771005]
[1736248902920,1.43681005,3654.2,3654.0,0.27368]
[1736248903222,0.27367,3654.1,3654.0,0.27368]
[1736248903413,1.71048005,3654.2,3654.0,0.27368]
[1736248903618,2.14117137,3654.1,3654.0,0.27368]
[1736248904921,5.34897137,3654.1,3654.0,0.27368]
[1736248907127,3.2078,3654.1,3654.0,0.27368]
[1736248907820,3.48147,3654.1,3653.9,0.27368]
[1736248908021,3.48147,3654.1,3654.0,0.27368]
[1736248908225,3.2078,3654.1,3654.0,0.27368]
[1736248908726,3.85165142,3654.2,3654.0,0.27368]
[1736248908920,3.85165142,3654.2,3653.7,0.98771005]
[1736248908921,7.05945142,3654.2,3654.1,0.27367]
[1736248909426,0.27367,3654.1,3654.0,0.27368]
[1736248909930,4.91828005,3654.2,3654.1,0.27367]
[1736248910327,4.91828005,3654.2,3653.7,0.98771005]
[1736248910523,4.91828005,3654.2,3654.0,0.27368]
[1736248910923,4.91828005,3654.2,3654.1,0.27367]
[1736248911123,4.91828005,3654.2,3653.7,0.98771005]
[1736248911323,4.91828005,3654.2,3654.1,0.27367]
[1736248912821,4.64461005,3654.2,3654.1,0.27367]
[1736248913229,4.91828005,3654.2,3654.1,0.27367]
[1736248913536,3.6569,3654.2,3654.1,0.27367]
[1736248914833,3.2078,3654.3,3653.9,0.98771005]
[1736248915028,3.2078,3654.3,3654.2,0.27367]
[1736248915534,3.2078,3654.3,3654.2,1.14147]
[1736248916526,3.2078,3654.3,3654.2,1.59527]
[1736248918337,4.46917005,3654.3,3654.2,1.59527]
[1736248919932,4.19551005,3654.3,3654.2,1.59527]
[1736248920133,4.46917005,3654.3,3654.2,1.59527]
[1736248920330,4.19551005,3654.3,3654.2,1.59527]
[1736248920732,3.2078,3654.3,3654.2,1.59527]
[1736248920933,3.48146,3654.3,3654.2,1.59527]
[1736248922541,4.46917005,3654.3,3654.2,0.27367]
[1736248927547,4.46917005,3654.3,3653.8,0.27369]
[1736248927548,0.2737,3653.9,3653.8,0.27369]
[1736248929943,0.27369,3654.0,3653.9,0.27368]
[1736248930343,0.27369,3654.0,3653.9,1.26139005]
[1736248930644,0.4519,3654.2,3654.1,0.27367]
[1736248930833,5.34897137,3654.3,3654.2,0.27367]
[1736248931333,5.34897137,3654.3,3654.2,0.73057]
[1736248931935,0.27366,3654.4,3654.2,0.4569]
[1736248932139,0.27366,3654.4,3654.3,0.27366]
[1736248932438,0.8814,3654.5,3654.4,0.27365]
[1736248934843,1.15504,3654.5,3654.4,0.27365]
[1736248935245,0.8814,3654.5,3654.0,1.1274]
[1736248935445,1.26137005,3654.4,3654.3,0.27366]
[1736248936241,0.8814,3654.5,3654.1,0.98771005]
[1736248936438,0.8814,3654.5,3654.4,0.27365]
[1736248940654,3.02506629,3654.5,3654.4,0.27365]
[1736248940854,3.02506629,3654.5,3654.3,0.98771005]
[1736248941856,2.14366629,3654.4,3654.3,0.98771005]
[1736248943355,2.14366629,3654.4,3654.3,4.19551005]
[1736248943563,2.14366629,3654.4,3654.3,4.46917005]
[1736248944555,2.14366629,3654.8,3654.7,0.27363]
[1736248944760,2.14366629,3654.8,3654.7,1.26134005]
[1736248945262,2.14366629,3654.8,3654.7,0.27363]
[1736248946058,2.14366629,3655.0,3654.8,0.27362]
[1736248946261,2.14366629,3655.0,3654.8,0.4323]
[1736248946459,2.14366629,3655.0,3654.8,0.70592]
[1736248947157,5.35146629,3655.1,3654.9,0.27361]
[1736248947364,5.62506629,3655.1,3654.8,0.70592]
[1736248947866,0.27361,3655.0,3654.8,0.4323]
[1736248948464,3.2078,3655.1,3654.9,0.27361]
[1736248948662,3.4814,3655.1,3654.8,0.70592]
[1736248949063,3.2078,3655.1,3654.8,0.4323]
[1736248949566,3.2078,3655.1,3654.9,0.4397]
[1736248949754,3.4814,3655.1,3654.9,0.4397]
[1736248950066,3.2078,3655.1,3654.9,0.4397]
[1736248950473,3.4814,3655.1,3654.9,0.4397]
[1736248950773,3.2078,3655.1,3654.9,0.4397]
[1736248950965,3.2078,3655.1,3654.9,0.71331]
[1736248951574,5.74887292,3655.2,3655.0,0.2736]
[1736248951878,2.14366629,3655.2,3655.0,0.2736]
[1736248952066,2.85885629,3655.3,3655.0,0.2736]
[1736248952769,2.58526629,3655.3,3655.2,0.27359]
[1736248952962,2.14366629,3655.3,3655.2,0.27359]
[1736248953769,3.00326629,3655.5,3655.3,0.27358]
[1736248953972,3.00326629,3655.5,3654.9,3.6475]
[1736248954171,3.00326629,3655.5,3655.3,0.27358]
[1736248954374,3.27683629,3655.5,3655.3,0.27358]
[1736248954879,0.27358,3655.4,3655.2,0.27359]
[1736248955264,3.27683629,3655.5,3655.3,0.27358]
[1736248955571,3.27683629,3655.5,3655.2,0.27359]
[1736248955572,0.8596,3655.5,3655.2,0.27359]
[1736248955775,1.13318,3655.5,3655.3,0.27358]
[1736248955971,0.27358,3655.4,3655.2,0.27359]
[1736248956171,1.13317,3655.5,3655.3,0.27358]
[1736248956473,0.8596,3655.5,3654.9,3.6475]
[1736248956775,0.2736,3655.2,3655.0,0.2736]
[1736248956976,1.13317,3655.5,3655.3,0.27358]
[1736248957577,0.27358,3655.4,3655.2,0.27359]
[1736248958265,0.27358,3655.4,3655.0,0.27361]
[1736248958471,0.8596,3655.5,3654.9,0.4397]
[1736248958973,0.27358,3655.4,3655.3,0.27358]
[1736248961071,0.8596,3655.5,3654.9,0.4397]
[1736248961275,0.27359,3655.3,3655.2,0.27359]
[1736248967473,1.84800168,3655.5,3655.1,0.27359]
[1736248967474,0.2736,3655.2,3655.1,0.27359]
[1736248969079,0.27361,3655.0,3654.9,3.48141]
[1736248969270,0.27361,3655.0,3654.9,4.46981168]
[1736248970982,0.71821,3655.0,3654.9,4.46981168]
[1736248971283,0.4446,3655.0,3654.9,4.46981168]
[1736248971477,0.71821,3655.0,3654.9,4.46981168]
[1736248974285,0.4446,3655.0,3654.9,4.46981168]
[1736248974781,0.71821,3655.0,3654.9,4.46981168]
[1736248975381,0.4446,3655.0,3654.9,4.46981168]
[1736248984092,0.4446,3655.0,3654.9,8.77103979]
[1736248985188,0.4446,3655.0,3654.9,4.46981168]
[1736248986095,0.8809,3655.0,3654.9,3.48141]
[1736248986588,0.8809,3655.0,3654.9,9.93325217]
[1736248987792,4.36231,3655.0,3654.9,4.30164407]
[1736248987996,4.0887,3655.0,3654.7,5.76859403]
[1736248988189,0.27362,3654.8,3654.7,5.76859403]
[1736248988384,1.26202168,3654.8,3654.7,6.04219403]
[1736248988592,7.97228609,3654.8,3654.7,5.76859403]
[1736248989091,12.24563596,3654.8,3654.7,0.2736]
[1736248989391,12.24563596,3654.8,3654.5,0.27361]
[1736248989392,0.27362,3654.6,3654.5,0.27361]
[1736248989786,6.81647876,3654.6,3654.5,0.27361]
[1736248990095,6.81647876,3654.7,3654.4,3.2078]
[1736248990294,10.03384973,3654.7,3654.6,0.2736]
[1736248990493,3.49097097,3654.7,3654.6,0.2736]
[1736248990696,10.24103024,3654.7,3654.6,0.2736]
[1736248991303,11.10121305,3654.7,3654.6,0.2736]
[1736248993193,10.82761305,3654.7,3654.6,0.2736]
[1736248993495,10.41703024,3654.7,3654.6,0.2736]
[1736248995402,10.69063024,3654.7,3654.6,0.2736]
[1736248995595,10.41703024,3654.7,3654.6,0.2736]
[1736248995796,3.21737097,3654.8,3654.7,0.2736]
[1736248997192,2.14406381,3655.1,3654.7,0.2736]
[1736248997502,2.14406381,3655.1,3655.0,3.48138]
[1736248997904,2.14406381,3655.1,3655.0,3.92838]
[1736248998100,2.14406381,3655.1,3655.0,4.79768]
[1736248998601,3.13246549,3655.2,3655.1,0.27357]
[1736249000402,3.40602549,3655.2,3655.1,0.27357]
[1736249000898,3.13246549,3655.2,3655.1,0.27357]
[1736249001500,3.40602549,3655.2,3655.1,0.27357]
[1736249001713,3.13246549,3655.2,3655.1,0.27357]
[1736249005515,2.14406381,3655.2,3655.1,0.27357]
[1736249006712,2.14406381,3655.3,3655.2,0.27356]
[1736249007109,9.15470279,3655.3,3655.2,0.27356]
[1736249007913,8.88114279,3655.3,3655.2,0.27356]
[1736249008112,6.73707898,3655.3,3655.2,0.27356]
[1736249009413,7.01063898,3655.3,3655.2,0.27356]
[1736249009910,6.73707898,3655.3,3655.2,0.27356]
[1736249010907,7.01063898,3655.3,3655.2,0.27356]
[1736249014112,10.22800995,3655.3,3655.2,0.27356]
[1736249016415,10.63852486,3655.3,3655.2,0.27356]
[1736249018517,10.22800995,3655.3,3655.2,0.27356]
[1736249022820,0.27357,3655.1,3655.0,3.2078]
[1736249023113,1.26197168,3655.1,3655.0,3.2078]
[1736249023320,8.19917043,3655.1,3655.0,3.2078]
[1736249023709,8.64797043,3655.1,3655.0,3.2078]
[1736249024020,9.4775423,3655.1,3655.0,3.2078]
[1736249027528,9.0287423,3655.1,3655.0,3.2078]
[1736249027727,9.4706423,3655.1,3655.0,3.2078]
[1736249030622,0.27359,3654.9,3654.8,0.27359]
[1736249030822,1.26199168,3654.9,3654.8,0.27359]
[1736249035725,0.98840168,3654.9,3654.7,0.4284]
[1736249035922,0.27359,3654.8,3654.7,0.4284]
[1736249036727,0.27359,3654.8,3654.7,0.702]
[1736249037133,3.8999053,3654.8,3654.7,0.702]
[1736249038625,0.68417775,3654.8,3654.7,0.702]
[1736249039028,0.68417775,3654.8,3654.7,0.4284]
[1736249039235,0.68417775,3654.8,3654.7,0.702]
[1736249039735,0.27359,3654.8,3654.7,0.702]
[1736249041436,0.68417775,3654.8,3654.7,0.702]
[1736249042930,0.27359,3654.8,3654.7,0.702]
[1736249044357,3.48997012,3654.8,3654.7,0.702]
[1736249045553,3.9005461,3654.8,3654.7,0.702]
[1736249047655,10.67729128,3654.8,3654.7,0.4284]
[1736249047856,11.12029128,3654.8,3654.7,0.4284]
[1736249049056,7.90391116,3654.8,3654.7,0.4284]
[1736249049758,0.27361,3654.6,3654.5,0.4505]
[1736249049953,1.26201168,3654.6,3654.5,0.4505]
[1736249050157,8.11633167,3654.6,3654.5,0.4505]
[1736249050554,11.74082331,3654.6,3654.5,0.4505]
[1736249053062,11.33024733,3654.6,3654.5,0.4505]
[1736249053663,11.33024733,3654.6,3654.5,0.72412]
[1736249055552,8.11633167,3654.6,3654.5,0.4505]
[1736249055756,8.11633167,3654.6,3654.5,0.72412]
[1736249056162,8.11633167,3654.6,3654.5,0.4505]
[1736249056456,8.11633167,3654.6,3654.5,0.72412]
[1736249056861,8.11633167,3654.6,3654.5,0.4505]
[1736249058864,8.11633167,3654.6,3654.5,0.72412]
[1736249059258,10.25820932,3654.6,3654.5,0.72412]
[1736249060060,9.98459932,3654.6,3654.5,0.72412]
[1736249062662,10.25820932,3654.6,3654.5,0.72412]
[1736249063467,8.11633167,3654.6,3654.5,0.72412]
[1736249066866,6.85431999,3654.6,3654.5,0.72412]
[1736249067471,3.21391566,3654.7,3654.6,0.27361]
[1736249067766,3.21391566,3654.7,3654.6,1.26201168]
[1736249069166,3.21391566,3654.7,3654.6,4.46981168]
[1736249069371,2.14289083,3654.7,3654.6,10.64974746]
[1736249069575,2.14289083,3654.7,3654.6,10.92335746]
[1736249071675,2.14289083,3654.7,3654.6,7.71555746]
[1736249071876,2.14289083,3654.7,3654.6,10.92335746]
[1736249073380,2.14289083,3654.7,3654.6,4.46981168]
[1736249074478,2.14289083,3654.7,3654.6,10.92335746]
[1736249075983,4.47590734,3654.9,3654.7,0.2736]
[1736249075984,3.6244692,3654.8,3654.7,0.2736]
[1736249077275,3.21391566,3654.8,3654.7,0.2736]
[1736249077473,3.48750566,3654.8,3654.7,0.2736]
[1736249078279,3.21391566,3654.8,3654.7,0.2736]
[1736249079280,3.62446822,3654.8,3654.7,0.2736]
[1736249080781,3.21391566,3654.8,3654.7,0.2736]
[1736249081580,3.48750566,3654.8,3654.7,0.2736]
[1736249082180,0.27359,3654.8,3654.7,0.2736]
[1736249083584,3.8980706,3654.8,3654.7,0.2736]
[1736249084985,0.68415494,3654.8,3654.7,0.2736]
[1736249085983,0.27359,3654.8,3654.7,0.2736]
[1736249086185,5.26175155,3654.9,3654.5,0.4505]
[1736249086486,0.27361,3654.7,3654.6,0.27361]
[1736249087186,3.48772996,3654.7,3654.6,0.27361]
[1736249089279,0.68417494,3654.7,3654.6,0.27361]
[1736249090386,0.27361,3654.7,3654.6,0.27361]
[1736249090785,1.26201168,3654.7,3654.6,0.27361]
[1736249091388,4.88609975,3654.7,3654.6,0.27361]
[1736249094387,3.89769807,3654.7,3654.6,3.48141]
[1736249095281,3.48713313,3654.7,3654.6,3.48141]
[1736249096687,3.21352313,3654.7,3654.6,3.48141]
[1736249096889,3.48712313,3654.7,3654.6,3.48141]
[1736249097692,3.21352313,3654.7,3654.6,3.48141]
[1736249098690,3.48712313,3654.7,3654.6,3.48141]
[1736249099590,0.2736,3654.7,3654.6,3.48141]
[1736249100897,3.48712313,3654.7,3654.6,3.48141]
[1736249103606,3.89768843,3654.7,3654.6,3.48141]
[1736249104005,3.89768843,3654.7,3654.6,0.27361]
[1736249104697,0.6841653,3654.7,3654.6,0.27361]
[1736249105805,0.2736,3654.7,3654.6,0.27361]
[1736249106609,0.27361,3654.6,3654.5,6.45354578]
[1736249106911,0.72291,3654.6,3654.5,6.45354578]
[1736249107311,8.149701,3654.6,3654.5,6.45354578]
[1736249107911,12.56000617,3654.6,3654.2,9.93497578]
[1736249108112,0.27363,3654.3,3654.2,9.93497578]
[1736249108308,1.26203168,3654.3,3654.2,6.45354578]
[1736249108523,8.05291227,3654.3,3654.2,6.45354578]
[1736249109612,8.05291227,3654.3,3654.1,0.4537]
[1736249109613,0.27364,3654.2,3654.1,0.9008]
[1736249109806,0.27364,3654.2,3654.1,1.17445]
[1736249110002,7.02349636,3654.2,3654.1,1.17445]
[1736249110303,7.02349636,3654.2,3654.1,0.9008]
[1736249110705,10.64428511,3654.2,3654.1,0.9008]
[1736249111110,11.10328511,3654.2,3654.1,0.9008]
[1736249111710,11.10328511,3654.2,3654.1,0.4471]
[1736249112117,0.27365,3654.0,3653.9,5.00259355]
[1736249112509,0.27365,3654.0,3653.9,4.72893355]
[1736249112510,7.01264169,3654.0,3653.9,4.72893355]
[1736249112908,7.01264169,3654.0,3653.9,5.00259355]
[1736249113116,7.01264169,3654.0,3653.9,1.68356168]
[1736249113612,6.73899169,3654.0,3653.9,1.68356168]
[1736249116117,6.73899169,3654.0,3653.9,5.99099523]
[1736249116811,2.13840818,3654.2,3654.1,0.27365]
[1736249117012,2.13840818,3654.2,3654.1,1.26205168]
[1736249117212,2.41204818,3654.3,3654.2,0.27364]
[1736249117511,2.41204818,3654.3,3654.2,3.92594]
[1736249117918,3.40044986,3654.3,3654.2,0.71814]
[1736249118620,1.26204168,3654.3,3654.2,0.71814]
[1736249119317,0.27364,3654.3,3654.2,0.71814]
[1736249120819,1.26204168,3654.3,3654.2,0.71814]
[1736249121015,0.27364,3654.2,3654.1,4.58107355]
[1736249122522,0.27364,3654.2,3654.1,0.27364]
[1736249122913,3.12680986,3654.3,3653.9,5.18263355]
[1736249123119,0.27365,3654.1,3654.0,0.27365]
[1736249124722,0.27365,3654.1,3654.0,3.48145]
[1736249125323,2.41204818,3654.2,3654.1,0.27365]
[1736249126127,0.27364,3654.2,3654.1,0.27365]
[1736249126521,2.13840818,3654.3,3654.1,0.98840168]
[1736249126823,2.13840818,3654.3,3654.2,0.27364]
[1736249127128,2.41203818,3654.3,3654.2,0.27364]
[1736249127426,2.13840818,3654.3,3654.2,0.27364]
[1736249127725,0.27363,3654.4,3654.3,0.27363]
[1736249129631,0.27363,3654.4,3654.3,1.10813]
[1736249130031,2.41203818,3654.4,3654.3,1.10813]
[1736249136427,3.48385345,3654.4,3654.3,1.10813]
[1736249138432,3.48385345,3654.4,3654.3,0.27363]
[1736249138836,3.94315345,3654.4,3654.0,5.17443355]
[1736249139031,0.27364,3654.3,3654.2,0.27363]
[1736249139237,1.26204168,3654.3,3654.2,0.27363]
[1736249140155,4.47226513,3654.3,3654.2,0.27363]
[1736249143735,4.88289142,3654.3,3654.2,0.27363]
[1736249144135,3.89448974,3654.3,3654.2,0.27363]
[1736249147636,0.27365,3654.1,3654.0,1.14065]
[1736249147837,1.26205168,3654.1,3654.0,1.14065]
[1736249148042,8.01891296,3654.1,3654.0,1.14065]
[1736249148941,8.01891296,3654.1,3654.0,0.70015]
[1736249149142,8.42953925,3654.1,3654.0,0.70015]
[1736249151948,7.44113757,3654.1,3654.0,0.70015]
[1736249153057,10.65155399,3654.1,3654.0,0.70015]
[1736249155448,7.44113757,3654.1,3654.0,0.70015]
[1736249157338,7.16748757,3654.1,3654.0,0.70015]
[1736249158049,9.96724583,3654.1,3654.0,0.70015]
[1736249159039,10.24089583,3654.1,3654.0,0.70015]
[1736249159750,7.03051128,3654.1,3654.0,5.00758355]
[1736249163654,9.17019912,3654.1,3654.0,0.70015]
[1736249164945,10.24089583,3654.1,3654.0,0.70015]
[1736249165150,11.22929751,3654.1,3654.0,0.70015]
[1736249167159,9.96724583,3654.1,3654.0,0.70015]
[1736249168863,8.89746021,3654.1,3654.0,0.70015]
[1736249174059,6.75686128,3654.1,3654.0,0.70015]
[1736249175362,6.75686128,3654.1,3654.0,7.15369578]
[1736249176266,7.03051128,3654.1,3654.0,7.15369578]
[1736249176461,9.1703685,3654.1,3654.0,7.15369578]
[1736249176868,10.58147018,3654.1,3654.0,7.15369578]
[1736249177567,8.85226581,3654.1,3654.0,0.70015]
[1736249178971,12.06245747,3654.1,3654.0,5.0076205]
[1736249180368,8.85226581,3654.1,3654.0,5.0076205]
[1736249189277,8.15591581,3654.1,3654.0,5.0076205]
[1736249189581,7.44116413,3654.1,3654.0,5.0076205]
[1736249190079,10.65095384,3654.1,3654.0,5.0076205]
[1736249191182,10.65095384,3654.1,3654.0,0.70015]
[1736249194482,10.37730384,3654.1,3654.0,0.70015]
[1736249194679,10.65095384,3654.1,3654.0,0.70015]
[1736249194977,10.37730384,3654.1,3654.0,0.70015]
[1736249195683,10.37730384,3654.1,3654.0,1.68855168]
[1736249197181,6.75686128,3654.1,3654.0,1.68855168]
[1736249200478,3.20978971,3654.2,3654.0,1.41490168]